[Event "FIDE World Junior U20-ch Girls 2025"]
[Site "Petrovac"]
[Date "2025.03.03"]
[Round "7.22"]
[White "Tarasenka, Aliaksandra"]
[Black "Shohradova, Leyla"]
[Result "1-0"]
[Annotator "NA COMBH"]
[ECO "C15"]
[WhiteElo "2139"]
[BlackElo "1986"]
[PlyCount "141"]
[EventDate "2025.02.23"]
[EventType "swiss"]
[EventCountry "MNE"]
[SourceTitle "playchess.com"]
[Source "ChessBase"]
[SourceQuality "1"]
[TimeControl "40/5400+30:1800+30"]

1. e4 {[%emt 0:00:03]} e6 {[%emt 0:00:05]} 2. d4 {[%emt 0:00:06]} d5 {[%emt 0:00:05]} 3. Nc3 {[%emt 0:00:05]} Bb4 {[%emt 0:00:15]} 4. Nge2 {[%emt 0:00:05]} dxe4 {[%emt 0:00:28]} 5. a3 {[%emt 0:00:04]} Be7 {[%emt 0:00:08]} 6. Nxe4 {[%emt 0:00:05]} b6 {[%emt 0:00:14]} 7. g3 {[%emt 0:06:14]} Bb7 {[%emt 0:00:46]} 8. Bg2 {[%emt 0:00:20]} Qc8 {[%emt 0:00:59]} 9. O-O {[%emt 0:07:54]} Nd7 {[%emt 0:00:12]} 10. c4 {[%emt 0:10:44]} Ngf6 {[%emt 0:03:18]} 11. Nxf6+ {[%emt 0:08:29]} Bxf6 {[%emt 0:06:22]} 12. d5 {[%emt 0:00:27]} exd5 {[%emt 0:05:30]} 13. Nf4 {[%emt 0:02:33]} O-O {[%emt 0:07:27]} 14. Nxd5 {[%emt 0:01:35]} c6 {[%emt 0:08:55]} 15. Nxf6+ {[%emt 0:24:56]} Nxf6 {[%emt 0:00:07]} 16. Qf3 {[%emt 0:01:52]} Rb8 {[%emt 0:12:21]} 17. c5 {[%emt 0:01:48]} Nd5 {[%emt 0:05:57]} 18. Bf4 {[%emt 0:16:51]} Nxf4 {[%emt 0:06:40]} 19. Qxf4 {[%emt 0:00:01]} bxc5 {[%emt 0:00:39]} 20. Rfc1 {[%emt 0:00:15]} c4 {[%emt 0:06:07]} 21. Qxc4 {[%emt 0:07:42]} c5 {[%emt 0:07:55]} 22. Qxc5 {[%emt 0:00:13]} Qxc5 {[%emt 0:01:53]} 23. Rxc5 {[%emt 0:00:02]} Bxg2 {[%emt 0:00:03]} 24. Kxg2 {[%emt 0:00:07]} Rxb2 {[%emt 0:00:08]} 25. Rc7 {[%emt 0:00:02]} a6 {[%emt 0:01:09]} 26. Ra7 {[%emt 0:00:33]} Rb6 {[%emt 0:01:52]} 27. a4 {[%emt 0:01:09]} Rfb8 {[%emt 0:01:04]} 28. a5 {[%emt 0:01:25]} Rf6 {[%emt 0:00:35]} 29. Rb1 {[%emt 0:01:05]} Rd8 {[%emt 0:06:02]} 30. Rb6 {[%emt 0:00:10]} Rf5 {[%emt 0:00:46]} 31. Rbxa6 {[%emt 0:00:40]} g6 {[%emt 0:01:12]} 32. Ra8 {[%emt 0:01:07]} Rxa8 {[%emt 0:00:06]} 33. Rxa8+ {[%emt 0:00:02]} Kg7 {[%emt 0:00:08]} 34. h4 {[%emt 0:01:55]} h5 {[%emt 0:01:48]} 35. Kf1 {[%emt 0:00:13]} Rf3 {[%emt 0:00:59]} 36. Ke2 {[%emt 0:06:32]} Ra3 {[%emt 0:00:05]} 37. a6 {[%emt 0:00:05]} Kf6 {[%emt 0:01:00]} 38. Kd2 {[%emt 0:00:26]} Kf5 {[%emt 0:02:15]} 39. Ke2 {[%emt 0:00:58]} f6 {[%emt 0:09:42]} 40. a7 {[%emt 0:00:29]} Ra2+ {[%emt 0:01:38]} 41. Ke3 {[%emt 0:02:42]} Ra3+ {[%emt 0:00:42]} 42. Kd4 {[%emt 0:07:57]} Ra1 {[%emt 0:11:34]} 43. f3 {[%emt 0:05:28]} Ra5 {[%emt 0:00:19]} 44. Kc4 {[%emt 0:01:19]} Ra1 {[%emt 0:00:06]} 45. Kb5 {[%emt 0:01:00]} Rb1+ {[%emt 0:04:49]} 46. Kc6 {[%emt 0:00:31]} Rc1+ {[%emt 0:01:39]} 47. Kd6 {[%emt 0:00:18]} Rd1+ {[%emt 0:01:22]} 48. Ke7 {[%emt 0:00:12]} Ra1 {[%emt 0:00:11]} 49. Kf7 {[%emt 0:01:12]} Ra6 {[%emt 0:03:01]} 50. Kg7 {[%emt 0:01:55]} Ra3 {[%emt 0:03:06]} 51. Kh6 {[%emt 0:00:55]} Ra6 {[%emt 0:02:19]} 52. Rb8 {[%emt 0:01:18]} Rxa7 {[%emt 0:00:46]} 53. Rb5+ {[%emt 0:00:06]} Ke6 {[%emt 0:00:35]} 54. Kxg6 {[%emt 0:00:09]} Ra1 {[%emt 0:00:31]} 55. Kxh5 {[%emt 0:01:10]} Ra3 {[%emt 0:01:05]} 56. Kg4 {[%emt 0:00:17]} Kf7 {[%emt 0:00:26]} 57. h5 {[%emt 0:02:13]} Kg7 {[%emt 0:00:11]} 58. Rb7+ {[%emt 0:01:00]} Kh6 {[%emt 0:00:33]} 59. Rf7 {[%emt 0:00:43]} Ra6 {[%emt 0:00:51]} 60. f4 {[%emt 0:02:39]} Rb6 {[%emt 0:02:09]} 61. Kh4 {[%emt 0:00:33]} f5 {[%emt 0:01:16]} 62. Rxf5 {[%emt 0:00:14]} Rb1 {[%emt 0:00:01]} 63. Rf6+ {[%emt 0:00:08]} Kg7 {[%emt 0:00:13]} 64. Ra6 {[%emt 0:00:08]} Rb7 {[%emt 0:00:16]} 65. g4 {[%emt 0:00:11]} Kh7 {[%emt 0:00:04]} 66. g5 {[%emt 0:00:07]} Rb1 {[%emt 0:00:09]} 67. Ra7+ {[%emt 0:00:04]} Kg8 {[%emt 0:00:04]} 68. h6 {[%emt 0:00:30]} Rg1 {[%emt 0:00:28]} 69. Kh5 {[%emt 0:00:09]} Rb1 {[%emt 0:00:06]} 70. Ra8+ {[%emt 0:00:19]} Kf7 {[%emt 0:00:08] Check Result:#15} 71. h7 {[%emt 0:00:10]} 1-0

[Event "FIDE World Junior U20-ch Girls 2025"]
[Site "Petrovac"]
[Date "2025.03.03"]
[Round "7.23"]
[White "Peglau, Dora"]
[Black "Gasparyan, Milena"]
[Result "0-1"]
[Annotator "NA COMBH"]
[ECO "D40"]
[WhiteElo "2134"]
[BlackElo "1986"]
[PlyCount "68"]
[EventDate "2025.02.23"]
[EventType "swiss"]
[EventCountry "MNE"]
[SourceTitle "playchess.com"]
[Source "ChessBase"]
[SourceQuality "1"]
[TimeControl "40/5400+30:1800+30"]

1. Nf3 {[%emt 0:00:03]} d5 {[%emt 0:00:18]} 2. c4 {[%emt 0:00:04]} e6 {[%emt 0:00:37]} 3. d4 {[%emt 0:00:47]} Nf6 {[%emt 0:00:11]} 4. Nc3 {[%emt 0:00:38]} c5 {[%emt 0:00:12]} 5. e3 {[%emt 0:01:11]} Be7 {[%emt 0:02:39]} 6. dxc5 {[%emt 0:01:25]} Bxc5 {[%emt 0:04:10]} 7. a3 {[%emt 0:00:52]} dxc4 {[%emt 0:05:51]} 8. Qxd8+ {[%emt 0:02:34]} Kxd8 {[%emt 0:00:05]} 9. Bxc4 {[%emt 0:00:17]} a6 {[%emt 0:00:59]} 10. b4 {[%emt 0:06:48]} Bd6 {[%emt 0:00:29]} 11. Bb2 {[%emt 0:07:31]} b5 {[%emt 0:02:39]} 12. Bb3 {[%emt 0:09:02]} Bb7 {[%emt 0:01:34]} 13. Ke2 {[%emt 0:04:25]} Ke7 {[%emt 0:01:34]} 14. Nd2 {[%emt 0:06:13]} Rd8 {[%emt 0:06:59]} 15. Rac1 {[%emt 0:02:30]} Nbd7 {[%emt 0:04:06]} 16. e4 {[%emt 0:03:23]} Be5 {[%emt 0:02:09]} 17. f3 {[%emt 0:03:06]} Rac8 {[%emt 0:00:28]} 18. g3 {[%emt 0:02:15]} g5 {[%emt 0:09:39]} 19. Nd1 {[%emt 0:15:53]} Bxb2 {[%emt 0:08:35]} 20. Nxb2 {[%emt 0:00:11]} g4 {[%emt 0:00:10]} 21. fxg4 {[%emt 0:04:02]} Nxe4 {[%emt 0:07:47]} 22. Nxe4 {[%emt 0:00:11]} Bxe4 {[%emt 0:00:07]} 23. Rhf1 {[%emt 0:04:16]} Ne5 {[%emt 0:01:19]} 24. g5 {[%emt 0:00:45]} Nf3 {[%emt 0:11:48]} 25. Rxc8 {[%emt 0:04:36]} Rxc8 {[%emt 0:00:11]} 26. Bd1 {[%emt 0:02:18]} Rc3 {[%emt 0:04:31]} 27. a4 {[%emt 0:02:13]} Nxh2 {[%emt 0:03:37]} 28. Rf2 {[%emt 0:04:24]} Nf3 {[%emt 0:00:44]} 29. axb5 {[%emt 0:00:40]} axb5 {[%emt 0:00:09]} 30. g4 {[%emt 0:01:14]} Ra3 {[%emt 0:01:49]} 31. Kf1 {[%emt 0:01:51]} Nxg5 {[%emt 0:00:32]} 32. Be2 {[%emt 0:01:27]} Ra1+ {[%emt 0:05:59]} 33. Nd1 {[%emt 0:00:30]} Nh3 {[%emt 0:00:53]} 34. Rh2 {[%emt 0:02:48] Check Result:-5.69} Nf4 {[%emt 0:00:08]} 0-1

[Event "FIDE World Junior U20-ch Girls 2025"]
[Site "Petrovac"]
[Date "2025.03.03"]
[Round "7.24"]
[White "Petricenco, Ana"]
[Black "Ter-Avetisjana, Agnesa Stepania"]
[Result "1/2-1/2"]
[Annotator "RC"]
[ECO "B12"]
[WhiteElo "1973"]
[BlackElo "2133"]
[PlyCount "178"]
[EventDate "2025.02.23"]
[EventType "swiss"]
[EventCountry "MNE"]
[SourceTitle "playchess.com"]
[Source "ChessBase"]
[SourceQuality "1"]
[TimeControl "40/5400+30:1800+30"]

1. e4 {[%emt 0:00:03]} c6 {[%emt 0:03:26]} 2. d4 {[%emt 0:00:11]} d5 {[%emt 0:00:04]} 3. e5 {[%emt 0:00:09]} Bf5 {[%emt 0:00:04]} 4. Nf3 {[%emt 0:00:15]} e6 {[%emt 0:00:05]} 5. Be2 {[%emt 0:00:28]} Nd7 {[%emt 0:00:06]} 6. O-O {[%emt 0:00:17]} h6 {[%emt 0:00:10]} 7. c3 {[%emt 0:00:42]} Ne7 {[%emt 0:00:10]} 8. Nbd2 {[%emt 0:00:21]} a5 {[%emt 0:00:17]} 9. a3 {[%emt 0:07:10]} Bg6 {[%emt 0:06:22]} 10. b4 {[%emt 0:08:01]} Nf5 {[%emt 0:04:11]} 11. Bb2 {[%emt 0:06:29]} Be7 {[%emt 0:03:12]} 12. h3 {[%emt 0:05:53]} O-O {[%emt 0:00:55]} 13. Nb3 {[%emt 0:02:59]} a4 {[%emt 0:03:26]} 14. Nc5 {[%emt 0:07:27]} Nxc5 {[%emt 0:02:46]} 15. dxc5 {[%emt 0:00:46]} b6 {[%emt 0:03:39]} 16. Nd4 {[%emt 0:08:26]} Qc7 {[%emt 0:03:23]} 17. cxb6 {[%emt 0:01:24]} Qxb6 {[%emt 0:01:53]} 18. Nxf5 {[%emt 0:02:42]} Bxf5 {[%emt 0:00:19]} 19. c4 {[%emt 0:00:22]} Rfd8 {[%emt 0:06:11]} 20. cxd5 {[%emt 0:07:16]} Rxd5 {[%emt 0:01:58]} 21. Qc1 {[%emt 0:03:31]} Rad8 {[%emt 0:05:53]} 22. Bc3 {[%emt 0:06:36]} Bg5 {[%emt 0:12:41]} 23. Qe1 {[%emt 0:11:24]} Bf4 {[%emt 0:04:27]} 24. Bc4 {[%emt 0:03:12]} Bd3 {[%emt 0:02:26]} 25. Bxd3 {[%emt 0:03:02]} Rxd3 {[%emt 0:00:08]} 26. Bb2 {[%emt 0:01:55]} c5 {[%emt 0:08:46]} 27. Qe4 {[%emt 0:03:58]} Bg5 {[%emt 0:02:12]} 28. Bc1 {[%emt 0:01:28]} R3d4 {[%emt 0:08:50]} 29. bxc5 {[%emt 0:02:21]} Qxc5 {[%emt 0:00:25]} 30. Qe2 {[%emt 0:00:48]} Be7 {[%emt 0:04:03]} 31. Re1 {[%emt 0:00:47]} Rd3 {[%emt 0:02:45]} 32. Qe4 {[%emt 0:02:01]} Qc2 {[%emt 0:04:17]} 33. Be3 {[%emt 0:01:08]} Rc3 {[%emt 0:02:06]} 34. Qg4 {[%emt 0:01:18]} Rc4 {[%emt 0:02:36]} 35. Qf3 {[%emt 0:01:22]} Qe4 {[%emt 0:01:22]} 36. Qe2 {[%emt 0:00:52]} Rc3 {[%emt 0:01:54]} 37. Qb2 {[%emt 0:00:38]} Rb3 {[%emt 0:00:30]} 38. Qc1 {[%emt 0:00:22]} Qd3 {[%emt 0:00:58]} 39. Qc7 {[%emt 0:01:22]} Qd7 {[%emt 0:00:16]} 40. Qxd7 {[%emt 0:00:32]} Rxd7 {[%emt 0:00:01]} 41. Rec1 {[%emt 0:03:05]} Bxa3 {[%emt 0:06:17]} 42. Rc4 {[%emt 0:01:09]} Bb2 {[%emt 0:01:12]} 43. Raxa4 {[%emt 0:00:40]} Rd1+ {[%emt 0:00:20]} 44. Kh2 {[%emt 0:00:08]} Bxe5+ {[%emt 0:00:07]} 45. Bf4 {[%emt 0:00:14]} Bf6 {[%emt 0:03:34]} 46. Ra8+ {[%emt 0:08:25]} Kh7 {[%emt 0:00:13]} 47. Raa4 {[%emt 0:00:07]} Rb2 {[%emt 0:05:16]} 48. Be3 {[%emt 0:01:49]} Be5+ {[%emt 0:00:40]} 49. g3 {[%emt 0:01:29]} Rd3 {[%emt 0:06:17]} 50. Re4 {[%emt 0:01:04]} Bf6 {[%emt 0:02:23]} 51. Kg2 {[%emt 0:01:07]} Rb7 {[%emt 0:06:27]} 52. Bd4 {[%emt 0:02:09]} Bg5 {[%emt 0:02:54]} 53. h4 {[%emt 0:01:08]} Be7 {[%emt 0:00:37]} 54. Be3 {[%emt 0:01:28]} Rdd7 {[%emt 0:00:54]} 55. Ra6 {[%emt 0:01:17]} h5 {[%emt 0:00:17]} 56. Ra5 {[%emt 0:01:48]} g6 {[%emt 0:00:58]} 57. Raa4 {[%emt 0:00:10]} Rb5 {[%emt 0:00:39]} 58. Bd4 {[%emt 0:01:18]} Rbd5 {[%emt 0:00:14]} 59. Ba1 {[%emt 0:01:12]} Bf8 {[%emt 0:00:38]} 60. Ra8 {[%emt 0:00:19]} Bg7 {[%emt 0:00:18]} 61. Bxg7 {[%emt 0:00:31]} Kxg7 {[%emt 0:00:01]} 62. Ra6 {[%emt 0:00:16]} Rd2 {[%emt 0:00:19]} 63. Rea4 {[%emt 0:00:57]} e5 {[%emt 0:01:14]} 64. Re4 {[%emt 0:01:02]} Rc2 {[%emt 0:00:41]} 65. Ra3 {[%emt 0:01:57]} Rdd2 {[%emt 0:00:18]} 66. Rf3 {[%emt 0:00:05]} Re2 {[%emt 0:00:32]} 67. Rxe2 {[%emt 0:00:11]} Rxe2 {[%emt 0:00:01]} 68. Kf1 {[%emt 0:00:06]} Rb2 {[%emt 0:00:32]} 69. Re3 {[%emt 0:00:03]} Kf6 {[%emt 0:00:05]} 70. Kg2 {[%emt 0:00:18]} Kf5 {[%emt 0:00:22]} 71. Rf3+ {[%emt 0:00:15]} Ke6 {[%emt 0:00:01]} 72. Ra3 {[%emt 0:00:58]} f6 {[%emt 0:00:04]} 73. Kf3 {[%emt 0:00:12]} Kf5 {[%emt 0:00:05]} 74. Ke3 {[%emt 0:00:34]} g5 {[%emt 0:00:26]} 75. hxg5 {[%emt 0:01:41]} fxg5 {[%emt 0:00:01]} 76. Kf3 {[%emt 0:00:17]} Rb6 {[%emt 0:01:49]} 77. Ra8 {[%emt 0:00:53]} e4+ {[%emt 0:01:35]} 78. Kg2 {[%emt 0:00:38]} Re6 {[%emt 0:01:13]} 79. Ra5+ {[%emt 0:01:30]} Re5 {[%emt 0:00:19]} 80. Ra3 {[%emt 0:00:21]} Kg4 {[%emt 0:00:16]} 81. Ra4 {[%emt 0:00:44]} Kf5 {[%emt 0:00:40]} 82. Ra3 {[%emt 0:00:07]} Rd5 {[%emt 0:00:03]} 83. Ra4 {[%emt 0:01:32]} h4 {[%emt 0:00:36]} 84. Ra8 {[%emt 0:01:58]} e3 {[%emt 0:01:11]} 85. Rf8+ {[%emt 0:01:58]} Kg4 {[%emt 0:00:27]} 86. f3+ {[%emt 0:00:45]} Kh5 {[%emt 0:00:04]} 87. Rh8+ {[%emt 0:00:33]} Kg6 {[%emt 0:00:01]} 88. gxh4 {[%emt 0:00:08]} Re5 {[%emt 0:01:27]} 89. Kf1 {[%emt 0:00:36]} e2+ {[%emt 0:00:15]} 1/2-1/2

[Event "FIDE World Junior U20-ch Girls 2025"]
[Site "Petrovac"]
[Date "2025.03.03"]
[Round "7.25"]
[White "Nguyen, Binh Vy"]
[Black "Mihelic, Vesna"]
[Result "1-0"]
[Annotator "NA"]
[ECO "C54"]
[WhiteElo "1926"]
[BlackElo "2115"]
[PlyCount "85"]
[EventDate "2025.02.23"]
[EventType "swiss"]
[EventCountry "MNE"]
[SourceTitle "playchess.com"]
[Source "ChessBase"]
[SourceQuality "1"]
[TimeControl "40/5400+30:1800+30"]

1. e4 {[%emt 0:00:02]} e5 {[%emt 0:00:05]} 2. Nf3 {[%emt 0:00:08]} Nc6 {[%emt 0:00:06]} 3. Bc4 {[%emt 0:00:12]} Bc5 {[%emt 0:00:08]} 4. c3 {[%emt 0:00:10]} Nf6 {[%emt 0:00:08]} 5. d3 {[%emt 0:00:05]} O-O {[%emt 0:00:12]} 6. Bb3 {[%emt 0:00:10]} d5 {[%emt 0:00:18]} 7. Qe2 {[%emt 0:01:08]} a5 {[%emt 0:07:07]} 8. a4 {[%emt 0:01:03]} Be6 {[%emt 0:14:16]} 9. Bc2 {[%emt 0:01:10]} dxe4 {[%emt 0:03:52]} 10. dxe4 {[%emt 0:03:22]} h6 {[%emt 0:00:20]} 11. O-O {[%emt 0:00:59]} Qe7 {[%emt 0:00:44]} 12. Nbd2 {[%emt 0:05:08]} Nh5 {[%emt 0:04:10]} 13. Nb3 {[%emt 0:05:32]} Bb6 {[%emt 0:04:53]} 14. Rd1 {[%emt 0:05:12]} Bg4 {[%emt 0:03:17]} 15. Be3 {[%emt 0:04:05]} Bxe3 {[%emt 0:12:51]} 16. fxe3 {[%emt 0:03:56]} Nf6 {[%emt 0:06:10]} 17. h3 {[%emt 0:06:05]} Bh5 {[%emt 0:00:54]} 18. Nbd2 {[%emt 0:00:59]} Qc5 {[%emt 0:02:49]} 19. g4 {[%emt 0:07:04]} Bg6 {[%emt 0:00:55]} 20. Nh4 {[%emt 0:01:49]} Ne7 {[%emt 0:05:16]} 21. Rf1 {[%emt 0:06:30]} Rad8 {[%emt 0:01:23]} 22. Rf2 {[%emt 0:05:23]} Rd6 {[%emt 0:05:01]} 23. Qf3 {[%emt 0:02:21]} Rfd8 {[%emt 0:01:05]} 24. Nf1 {[%emt 0:01:25]} Qc4 {[%emt 0:03:22]} 25. Nf5 {[%emt 0:02:27]} Bxf5 {[%emt 0:01:55]} 26. gxf5 {[%emt 0:00:56]} Nc6 {[%emt 0:05:05]} 27. Rg2 {[%emt 0:01:38]} Kf8 {[%emt 0:01:56]} 28. Re1 {[%emt 0:03:39]} Ke7 {[%emt 0:05:19]} 29. Ree2 {[%emt 0:03:39]} Kd7 {[%emt 0:02:54]} 30. Rxg7 {[%emt 0:02:31]} Kc8 {[%emt 0:00:11]} 31. Reg2 {[%emt 0:06:00]} Qa2 {[%emt 0:02:53]} 32. Qe2 {[%emt 0:01:52]} R6d7 {[%emt 0:04:10]} 33. Qb5 {[%emt 0:01:54]} Nh5 {[%emt 0:01:52]} 34. Rg8 {[%emt 0:07:39]} Qa1 {[%emt 0:00:46]} 35. Rxd8+ {[%emt 0:02:07]} Rxd8 {[%emt 0:00:09]} 36. Bb3 {[%emt 0:00:51]} Nf6 {[%emt 0:01:03]} 37. Bd5 {[%emt 0:00:55]} Nxd5 {[%emt 0:00:36]} 38. exd5 {[%emt 0:00:08]} Ne7 {[%emt 0:00:17]} 39. e4 {[%emt 0:00:20]} Qe1 {[%emt 0:00:26]} 40. Qe2 {[%emt 0:00:41]} Qa1 {[%emt 0:00:25]} 41. Qc4 {[%emt 0:32:19]} Ng8 {[%emt 0:02:33]} 42. d6 {[%emt 0:00:00]} c6 {[%emt 0:00:51]} 43. Qxf7 {[%emt 0:00:00]} 1-0

[Event "FIDE World Junior U20-ch Girls 2025"]
[Site "Petrovac"]
[Date "2025.03.03"]
[Round "7.26"]
[White "Avetisyan, Ani"]
[Black "Sulyok, Eszter"]
[Result "1-0"]
[Annotator "NA"]
[ECO "D43"]
[WhiteElo "1904"]
[BlackElo "2109"]
[PlyCount "105"]
[EventDate "2025.02.23"]
[EventType "swiss"]
[EventCountry "MNE"]
[SourceTitle "playchess.com"]
[Source "ChessBase"]
[SourceQuality "1"]
[TimeControl "40/5400+30:1800+30"]

1. d4 {[%emt 0:00:03]} Nf6 {[%emt 0:00:11]} 2. c4 {[%emt 0:00:03]} e6 {[%emt 0:00:04]} 3. Nf3 {[%emt 0:00:03]} d5 {[%emt 0:00:05]} 4. Nc3 {[%emt 0:00:04]} c6 {[%emt 0:00:04]} 5. Qc2 {[%emt 0:00:03]} Nbd7 {[%emt 0:01:25]} 6. cxd5 {[%emt 0:00:10]} exd5 {[%emt 0:05:43]} 7. Bg5 {[%emt 0:00:12]} h6 {[%emt 0:00:22]} 8. Bh4 {[%emt 0:00:26]} Be7 {[%emt 0:02:27]} 9. e3 {[%emt 0:00:52]} O-O {[%emt 0:07:06]} 10. Bd3 {[%emt 0:00:24]} Re8 {[%emt 0:00:13]} 11. O-O {[%emt 0:00:15]} Ne4 {[%emt 0:02:30]} 12. Bxe4 {[%emt 0:00:46]} Bxh4 {[%emt 0:01:40]} 13. Bh7+ {[%emt 0:00:22]} Kh8 {[%emt 0:01:12]} 14. Bd3 {[%emt 0:00:37]} Bf6 {[%emt 0:07:10]} 15. b4 {[%emt 0:03:18]} Nf8 {[%emt 0:04:41]} 16. b5 {[%emt 0:05:15]} Bg4 {[%emt 0:01:47]} 17. bxc6 {[%emt 0:02:15]} bxc6 {[%emt 0:04:35]} 18. Na4 {[%emt 0:06:34]} Bxf3 {[%emt 0:08:36]} 19. gxf3 {[%emt 0:00:07]} Ne6 {[%emt 0:00:33]} 20. Nc5 {[%emt 0:04:30]} Nxd4 {[%emt 0:11:43]} 21. exd4 {[%emt 0:03:30]} Bxd4 {[%emt 0:02:58]} 22. Rae1 {[%emt 0:06:09]} Qg5+ {[%emt 0:00:40]} 23. Kh1 {[%emt 0:00:05]} Qf4 {[%emt 0:01:09]} 24. Kg2 {[%emt 0:04:11]} Be5 {[%emt 0:17:52]} 25. Rh1 {[%emt 0:00:25]} Qg5+ {[%emt 0:01:18]} 26. Kf1 {[%emt 0:00:14]} Qh4 {[%emt 0:00:48]} 27. h3 {[%emt 0:15:40]} Bd4 {[%emt 0:04:17]} 28. Rb1 {[%emt 0:03:33]} Rab8 {[%emt 0:03:29]} 29. Rb3 {[%emt 0:14:21]} a5 {[%emt 0:00:32]} 30. Bf5 {[%emt 0:06:48]} Rxb3 {[%emt 0:03:48]} 31. Nxb3 {[%emt 0:01:24]} Bb6 {[%emt 0:01:33]} 32. Kg2 {[%emt 0:04:11]} a4 {[%emt 0:01:03]} 33. Nc1 {[%emt 0:00:49]} g6 {[%emt 0:02:50]} 34. Bd7 {[%emt 0:02:03]} Re7 {[%emt 0:01:05]} 35. Bxc6 {[%emt 0:02:09]} Rc7 {[%emt 0:00:37]} 36. Nd3 {[%emt 0:01:36]} Qg5+ {[%emt 0:00:08]} 37. Kh2 {[%emt 0:00:53]} Qf6 {[%emt 0:00:09]} 38. Rc1 {[%emt 0:01:11]} Bd4 {[%emt 0:00:57]} 39. Qxa4 {[%emt 0:01:14]} Bc3 {[%emt 0:00:23]} 40. Rxc3 {[%emt 0:02:56]} Qxc3 {[%emt 0:00:15]} 41. Bb5 {[%emt 0:30:06]} Kg7 {[%emt 0:03:27]} 42. Qf4 {[%emt 0:00:00]} Re7 {[%emt 0:05:46]} 43. Qd6 {[%emt 0:00:00]} Re6 {[%emt 0:07:36]} 44. Qxd5 {[%emt 0:00:00]} Rf6 {[%emt 0:00:14]} 45. a4 {[%emt 0:00:00]} Rf5 {[%emt 0:01:12]} 46. Qe4 {[%emt 0:00:00]} Qa1 {[%emt 0:02:51]} 47. f4 {[%emt 0:00:00]} Qd1 {[%emt 0:04:43]} 48. Qd4+ {[%emt 0:00:00]} Rf6 {[%emt 0:00:59]} 49. a5 {[%emt 0:00:00]} Qb3 {[%emt 0:01:38]} 50. Bc4 {[%emt 0:00:00]} Qb8 {[%emt 0:01:43]} 51. a6 {[%emt 0:00:00]} g5 {[%emt 0:00:30]} 52. a7 {[%emt 0:00:00]} Qh8 {[%emt 0:02:45]} 53. Bd5 {[%emt 0:00:00]} 1-0

[Event "FIDE World Junior U20-ch Girls 2025"]
[Site "Petrovac"]
[Date "2025.03.03"]
[Round "7.27"]
[White "Shokirjonova, Barchinoy"]
[Black "Seyilhanova, Gulmira"]
[Result "1-0"]
[Annotator "NA"]
[ECO "E62"]
[WhiteElo "2061"]
[BlackElo "1939"]
[PlyCount "81"]
[EventDate "2025.02.23"]
[EventType "swiss"]
[EventCountry "MNE"]
[SourceTitle "playchess.com"]
[Source "ChessBase"]
[SourceQuality "1"]
[TimeControl "40/5400+30:1800+30"]

1. d4 {[%emt 0:00:06]} Nf6 {[%emt 0:00:06]} 2. c4 {[%emt 0:00:16]} g6 {[%emt 0:00:07]} 3. Nf3 {[%emt 0:00:11]} Bg7 {[%emt 0:00:05]} 4. g3 {[%emt 0:00:07]} O-O {[%emt 0:00:07]} 5. Bg2 {[%emt 0:00:06]} d6 {[%emt 0:00:07]} 6. O-O {[%emt 0:00:44]} Nc6 {[%emt 0:00:15]} 7. Nc3 {[%emt 0:00:06]} e5 {[%emt 0:00:27]} 8. dxe5 {[%emt 0:00:47]} dxe5 {[%emt 0:00:02]} 9. Bg5 {[%emt 0:00:07]} Be6 {[%emt 0:02:55]} 10. Nd2 {[%emt 0:08:54]} h6 {[%emt 0:01:08]} 11. Bxf6 {[%emt 0:04:34]} Qxf6 {[%emt 0:02:00]} 12. e3 {[%emt 0:05:39]} Qe7 {[%emt 0:03:14]} 13. Nd5 {[%emt 0:05:22]} Qd8 {[%emt 0:08:23]} 14. Nb3 {[%emt 0:07:55]} f5 {[%emt 0:09:26]} 15. Nc5 {[%emt 0:07:23]} Bc8 {[%emt 0:00:07]} 16. Qb3 {[%emt 0:12:33]} Rf7 {[%emt 0:27:28]} 17. Nxb7 {[%emt 0:26:10]} Qe8 {[%emt 0:05:27]} 18. Nc5 {[%emt 0:02:53]} e4 {[%emt 0:00:37]} 19. Qc2 {[%emt 0:02:28]} Qf8 {[%emt 0:02:15]} 20. Nb3 {[%emt 0:01:10]} Ne5 {[%emt 0:01:23]} 21. Rad1 {[%emt 0:03:09]} g5 {[%emt 0:10:02]} 22. Nd4 {[%emt 0:01:17]} c6 {[%emt 0:01:19]} 23. Nc3 {[%emt 0:00:28]} Qb4 {[%emt 0:10:42]} 24. b3 {[%emt 0:02:36]} Nd3 {[%emt 0:00:36]} 25. f3 {[%emt 0:00:59]} Ne5 {[%emt 0:10:45]} 26. fxe4 {[%emt 0:01:38]} Ng4 {[%emt 0:00:05]} 27. Qc1 {[%emt 0:00:57]} f4 {[%emt 0:01:01]} 28. exf4 {[%emt 0:01:17]} gxf4 {[%emt 0:00:13]} 29. gxf4 {[%emt 0:01:16]} Rd7 {[%emt 0:00:25]} 30. e5 {[%emt 0:00:34]} Bb7 {[%emt 0:00:36]} 31. Ne4 {[%emt 0:01:02]} Rad8 {[%emt 0:02:56]} 32. Nf5 {[%emt 0:01:05]} Bf8 {[%emt 0:01:28]} 33. Rxd7 {[%emt 0:01:04]} Rxd7 {[%emt 0:00:07]} 34. h3 {[%emt 0:00:31]} Bc5+ {[%emt 0:00:56]} 35. Kh1 {[%emt 0:00:08]} Nxe5 {[%emt 0:00:37]} 36. fxe5 {[%emt 0:00:20]} Rc7 {[%emt 0:00:29]} 37. Nxc5 {[%emt 0:00:24]} Qxc5 {[%emt 0:00:08]} 38. Qe3 {[%emt 0:00:12]} Qxe3 {[%emt 0:00:37]} 39. Nxe3 {[%emt 0:00:04]} Re7 {[%emt 0:00:09]} 40. Ng4 {[%emt 0:01:10]} Kg7 {[%emt 0:00:00]} 41. Re1 {[%emt 0:00:24]} 1-0

[Event "FIDE World Junior U20-ch Girls 2025"]
[Site "Petrovac"]
[Date "2025.03.03"]
[Round "7.28"]
[White "Shuqja, Klean"]
[Black "Zito, Enrica"]
[Result "1-0"]
[Annotator "NA RC"]
[ECO "B33"]
[WhiteElo "2049"]
[BlackElo "1941"]
[PlyCount "53"]
[EventDate "2025.02.23"]
[EventType "swiss"]
[EventCountry "MNE"]
[SourceTitle "playchess.com"]
[Source "ChessBase"]
[SourceQuality "1"]
[TimeControl "40/5400+30:1800+30"]

1. e4 {[%emt 0:01:25]} c5 {[%emt 0:00:03]} 2. Nf3 {[%emt 0:00:01]} Nc6 {[%emt 0:00:04]} 3. d4 {[%emt 0:00:50]} cxd4 {[%emt 0:00:04]} 4. Nxd4 {[%emt 0:00:02]} Nf6 {[%emt 0:00:07]} 5. Nc3 {[%emt 0:00:05]} e5 {[%emt 0:00:03]} 6. Ndb5 {[%emt 0:00:08]} d6 {[%emt 0:00:04]} 7. Bg5 {[%emt 0:00:51]} a6 {[%emt 0:00:04]} 8. Na3 {[%emt 0:00:05]} b5 {[%emt 0:00:03]} 9. Nd5 {[%emt 0:00:11]} Be7 {[%emt 0:00:04]} 10. Bxf6 {[%emt 0:01:31]} Bxf6 {[%emt 0:00:06]} 11. c3 {[%emt 0:00:20]} O-O {[%emt 0:00:06]} 12. Be2 {[%emt 0:02:34]} Rb8 {[%emt 0:07:18]} 13. Nc2 {[%emt 0:01:01]} Bg5 {[%emt 0:04:03]} 14. O-O {[%emt 0:13:35]} Be6 {[%emt 0:04:55]} 15. Nce3 {[%emt 0:25:26]} Ne7 {[%emt 0:03:35]} 16. Nxe7+ {[%emt 0:00:35]} Bxe7 {[%emt 0:00:55]} 17. Nd5 {[%emt 0:01:45]} Bxd5 {[%emt 0:00:11]} 18. Qxd5 {[%emt 0:00:08]} Qb6 {[%emt 0:00:40]} 19. Rfd1 {[%emt 0:04:17]} Rbc8 {[%emt 0:00:58]} 20. Qb3 {[%emt 0:05:00]} Kh8 {[%emt 0:04:39]} 21. Rf1 {[%emt 0:05:21]} Rc5 {[%emt 0:04:02]} 22. a4 {[%emt 0:02:27]} Qc6 {[%emt 0:03:33]} 23. axb5 {[%emt 0:04:48]} axb5 {[%emt 0:00:05]} 24. Ra7 {[%emt 0:03:09]} Qxe4 {[%emt 0:06:41]} 25. Rxe7 {[%emt 0:01:18]} Qxe2 {[%emt 0:00:22]} 26. Qxf7 {[%emt 0:02:08]} Rg8 {[%emt 0:00:40]} 27. Re8 {[%emt 0:00:38]} 1-0